bitfinex/quotes_BTCUSD_20250615
["timestamp","ask_amount","ask_price","bid_price","bid_amount"]
[1750030201137,0.41020612,105600.0,105590.0,0.62308176]
[1750030201341,0.41909764,105600.0,105590.0,0.62308176]
[1750030201560,0.41909766,105600.0,105590.0,0.62308176]
[1750030201788,0.41020612,105600.0,105590.0,0.62308176]
[1750030202226,0.4190977,105600.0,105590.0,0.62308176]
[1750030202473,0.42922734,105600.0,105590.0,0.62308176]
[1750030202686,0.42922727,105600.0,105590.0,0.62308176]
[1750030202898,0.41909766,105600.0,105590.0,0.62308176]
[1750030203106,0.41020612,105600.0,105590.0,0.62308176]
[1750030203322,0.41909777,105600.0,105590.0,0.62308176]
[1750030203526,0.41909766,105600.0,105590.0,0.62308176]
[1750030203766,0.41020612,105600.0,105590.0,0.62308176]
[1750030203976,0.014,105600.0,105590.0,0.62308176]
[1750030204439,0.09295809,105600.0,105590.0,0.62308176]
[1750030204635,0.014,105600.0,105590.0,0.62308176]
[1750030207115,0.41020612,105600.0,105590.0,0.62308176]
[1750030207324,0.02289162,105600.0,105590.0,0.62308176]
[1750030207530,0.014,105600.0,105590.0,0.62308176]
[1750030210121,0.41020612,105600.0,105590.0,0.62308176]
[1750030210324,0.41909775,105600.0,105590.0,0.62308176]
[1750030210988,0.41909774,105600.0,105590.0,0.62308176]
[1750030211200,0.4190977,105600.0,105590.0,0.62308176]
[1750030211421,0.41020612,105600.0,105590.0,0.62308176]
[1750030211632,0.41909769,105600.0,105590.0,0.62308176]
[1750030211843,0.41909767,105600.0,105590.0,0.62308176]
[1750030212057,0.41909768,105600.0,105590.0,0.62308176]
[1750030213188,0.014,105600.0,105590.0,0.62308176]
[1750030215757,0.014,105600.0,105590.0,0.90413168]
[1750030215972,0.014,105600.0,105590.0,0.62308176]
[1750030216414,0.014,105600.0,105590.0,0.65138174]
[1750030218741,0.014,105600.0,105590.0,1.30309456]
[1750030218959,0.014,105600.0,105590.0,1.27479458]
[1750030219165,0.014,105600.0,105590.0,1.33132764]
[1750030219371,0.014,105600.0,105590.0,1.3709438]
[1750030219604,0.014,105600.0,105590.0,1.42747686]
[1750030219822,0.01,105600.0,105590.0,1.42747686]
[1750030220032,0.01,105600.0,105590.0,1.42847686]
[1750030220240,0.01,105600.0,105590.0,1.43047686]
[1750030220445,0.01,105600.0,105590.0,1.3739438]
[1750030221331,0.01,105600.0,105590.0,0.95879749]
[1750030221559,0.01,105600.0,105590.0,0.90990735]
[1750030221993,0.01,105600.0,105590.0,0.9193774]
[1750030222208,0.01,105600.0,105590.0,0.90043721]
[1750030222394,0.01,105600.0,105590.0,0.91937758]
[1750030222631,0.01,105600.0,105590.0,0.90990744]
[1750030222918,0.01,105600.0,105590.0,0.91937749]
[1750030223143,0.01,105600.0,105590.0,0.92884763]
[1750030223357,0.01,105600.0,105590.0,0.90990744]
[1750030223571,0.01,105600.0,105590.0,0.91933767]
[1750030223788,0.01,105600.0,105590.0,0.90039721]
[1750030224011,0.01,105600.0,105590.0,0.91933758]
[1750030224224,0.01,105600.0,105590.0,1.02495676]
[1750030226184,0.01,105600.0,105590.0,1.42116288]
[1750030228610,0.01,105600.0,105590.0,1.43570373]
[1750030231271,0.01,105600.0,105590.0,1.46391826]
[1750030231721,0.01,105600.0,105590.0,1.42623412]
[1750030231945,0.01,105600.0,105590.0,1.46393885]
[1750030233525,0.01,105600.0,105590.0,1.26813885]
[1750030233773,0.01,105600.0,105590.0,1.46385885]
[1750030235141,0.01,105600.0,105590.0,1.26813885]
[1750030235374,0.01,105600.0,105590.0,1.46385885]
[1750030238203,0.01,105600.0,105590.0,1.17198963]
[1750030238427,0.01,105600.0,105590.0,1.36766963]
[1750030241018,0.01,105600.0,105590.0,1.3299649]
[1750030242308,0.01,105600.0,105590.0,2.11617102]
[1750030242525,0.02,105620.0,105610.0,0.94902829]
[1750030242745,0.02,105620.0,105610.0,1.32493033]
[1750030243013,0.02,105620.0,105610.0,1.36262508]
[1750030243941,0.02004719,105620.0,105610.0,1.36262508]
[1750030245336,0.02004719,105620.0,105610.0,1.25700769]
[1750030245561,0.02004719,105620.0,105610.0,0.67835026]
[1750030245822,0.41625331,105620.0,105610.0,0.47011551]
[1750030246045,0.41625331,105620.0,105610.0,0.61278176]
[1750030246486,0.02004719,105620.0,105610.0,0.61278176]
[1750030246945,0.02004719,105620.0,105610.0,0.41714176]
[1750030247169,0.06467252,105620.0,105610.0,0.61278176]
[1750030247406,0.02004719,105620.0,105610.0,0.61278176]
[1750030248376,0.02004719,105620.0,105610.0,0.41714176]
[1750030248606,0.02004719,105620.0,105610.0,0.61278176]
[1750030249054,0.41625331,105620.0,105610.0,0.61274176]
[1750030249499,0.41625331,105620.0,105610.0,0.54024176]
[1750030249940,0.41625331,105620.0,105610.0,0.38504176]
[1750030250168,0.41625331,105620.0,105610.0,0.54024176]
[1750030250386,0.02004719,105620.0,105610.0,0.65851907]
[1750030250600,0.02004719,105620.0,105610.0,0.57234176]
[1750030251045,0.02004719,105620.0,105610.0,0.61274176]
[1750030251304,0.02004719,105620.0,105610.0,0.64101551]
[1750030252215,0.02004719,105620.0,105610.0,0.61274176]
[1750030252437,0.02004719,105620.0,105610.0,0.64101551]
[1750030253094,0.02004719,105620.0,105610.0,0.62461551]
[1750030253575,0.02004719,105620.0,105610.0,0.64061551]
[1750030253799,0.02004719,105620.0,105610.0,0.72927965]
[1750030256357,0.02004719,105620.0,105610.0,0.64061551]
[1750030259440,0.02004719,105620.0,105610.0,0.48541551]
[1750030259659,0.02004719,105620.0,105610.0,0.64061551]
[1750030261466,0.41625331,105620.0,105600.0,0.06097375]
[1750030261711,0.39620612,105610.0,105600.0,0.09624176]
[1750030261932,0.39620612,105610.0,105600.0,0.25144176]
[1750030262159,0.40509681,105610.0,105600.0,0.25144176]
[1750030262382,0.40509678,105610.0,105600.0,0.25144176]
[1750030262603,0.40509676,105610.0,105600.0,0.25144176]
[1750030263055,0.39620612,105610.0,105600.0,0.25144176]
[1750030263274,0.00889066,105610.0,105600.0,0.51475218]
[1750030263502,0.001,105610.0,105600.0,0.56196522]
[1750030263768,0.02004719,105620.0,105610.0,0.0314]
[1750030263984,0.02004719,105620.0,105610.0,0.12764176]
[1750030264435,0.02004719,105620.0,105610.0,0.18465523]
[1750030264646,0.02004719,105620.0,105610.0,0.12764176]
[1750030265523,0.02504719,105620.0,105610.0,0.12764176]
[1750030271370,0.42125331,105620.0,105610.0,0.12764176]
[1750030272864,0.42125331,105620.0,105610.0,0.42644176]
[1750030274265,0.03393688,105620.0,105610.0,0.42644176]
[1750030274481,0.42125331,105620.0,105610.0,0.42644176]
[1750030274691,0.430143,105620.0,105610.0,0.42644176]
[1750030275161,0.42125331,105620.0,105610.0,0.42644176]
[1750030275387,0.430143,105620.0,105610.0,0.42644176]
[1750030275610,0.43014298,105620.0,105610.0,0.42644176]
[1750030275848,0.42125331,105620.0,105610.0,0.42644176]
[1750030276067,0.43014081,105620.0,105610.0,0.42644176]
[1750030276283,0.43014079,105620.0,105610.0,0.42644176]
[1750030276511,0.42125331,105620.0,105610.0,0.42644176]
[1750030276741,0.43014078,105620.0,105610.0,0.42644176]
[1750030276962,0.03393464,105620.0,105610.0,0.42644176]
[1750030277221,0.02504719,105620.0,105610.0,0.42644176]
[1750030278947,0.42125331,105620.0,105610.0,0.42644176]
[1750030279620,0.43014092,105620.0,105610.0,0.42644176]
[1750030279838,0.42125331,105620.0,105610.0,0.42644176]
[1750030280291,0.43014088,105620.0,105610.0,0.42644176]
[1750030280496,0.43014087,105620.0,105610.0,0.42644176]
[1750030280701,0.43014086,105620.0,105610.0,0.42644176]
[1750030280937,0.50815496,105620.0,105610.0,0.42644176]
[1750030281150,0.50815506,105620.0,105610.0,0.28280176]
[1750030281371,0.50815506,105620.0,105610.0,0.09624176]
[1750030281600,0.4992674,105620.0,105610.0,0.15516]
[1750030281819,0.50815534,105620.0,105610.0,0.15516]
[1750030282036,0.4992674,105620.0,105600.0,0.05957375]
[1750030282262,0.10306128,105620.0,105610.0,0.15516]
[1750030282475,0.42125331,105620.0,105600.0,0.31097551]
[1750030282695,0.39620612,105610.0,105600.0,0.31097551]
[1750030283124,0.39620612,105610.0,105600.0,0.28270176]
[1750030283340,0.39620612,105610.0,105600.0,0.26740176]
[1750030283557,0.40509462,105610.0,105600.0,0.26740176]
[1750030284254,0.40509471,105610.0,105600.0,0.28290176]
[1750030284468,0.40509473,105610.0,105600.0,0.28290176]
[1750030284692,0.39620612,105610.0,105600.0,0.28290176]
[1750030284906,0.39720612,105610.0,105600.0,0.28290176]
[1750030285326,0.40609476,105610.0,105600.0,0.28290176]
[1750030285538,0.00988861,105610.0,105600.0,0.28290176]
[1750030285757,0.73720612,105610.0,105600.0,0.0315]
[1750030285994,0.82182003,105610.0,105600.0,0.17026]
[1750030286210,0.00988823,105610.0,105600.0,0.69114478]
[1750030286429,0.001,105610.0,105600.0,0.91591485]
[1750030286647,0.001,105610.0,105600.0,0.9348536]
[1750030286859,0.001,105610.0,105600.0,0.98201741]
[1750030287290,0.001,105610.0,105600.0,1.07816663]
[1750030287717,0.001,105610.0,105600.0,0.98201741]
[1750030288351,0.001,105610.0,105600.0,0.58581129]
[1750030291938,0.001,105610.0,105600.0,0.55753754]
[1750030293985,0.001,105610.0,105600.0,0.58587522]
[1750030294469,0.001,105610.0,105600.0,0.55753754]
[1750030295397,0.001,105610.0,105600.0,0.59789754]
[1750030295822,0.001,105610.0,105600.0,0.69404676]
[1750030296464,0.001,105610.0,105600.0,1.02118407]
[1750030296886,0.001,105610.0,105600.0,0.9833777]
[1750030297096,0.001,105610.0,105600.0,1.02118429]
[1750030297300,0.001,105610.0,105600.0,0.92503507]
[1750030297940,0.001,105610.0,105600.0,0.89669754]
[1750030298170,0.001,105610.0,105600.0,1.32124083]
[1750030298415,0.001,105610.0,105600.0,1.32629189]
[1750030298622,0.001,105610.0,105600.0,1.42244111]
[1750030299125,0.001,105610.0,105600.0,1.70589898]
[1750030299448,0.001,105610.0,105600.0,1.78112968]
[1750030299669,0.02004719,105620.0,105610.0,0.26302217]
[1750030299891,0.02004719,105620.0,105610.0,0.90075946]
[1750030301476,0.02004719,105620.0,105610.0,0.90175946]
[1750030302137,0.02004719,105620.0,105610.0,0.90275946]
[1750030302364,0.02004719,105620.0,105610.0,1.20155946]
[1750030305018,0.39620612,105650.0,105640.0,0.0319]
[1750030305240,0.40554137,105650.0,105640.0,0.58206176]
[1750030305467,0.40554136,105650.0,105640.0,0.58206176]
[1750030305667,0.4341168,105650.0,105640.0,0.58206176]
[1750030305947,0.434141,105650.0,105640.0,0.58206176]
[1750030306177,0.43714109,105650.0,105640.0,0.58206176]
[1750030306627,0.42825342,105650.0,105640.0,0.58206176]
[1750030307114,0.43714109,105650.0,105640.0,0.58206176]
[1750030307330,0.43714107,105650.0,105640.0,0.58206176]
[1750030307563,0.46652131,105650.0,105640.0,0.66607735]
[1750030307832,0.4665213,105650.0,105640.0,0.58206176]
[1750030308239,0.45763366,105650.0,105640.0,0.58206176]
[1750030308445,0.43794579,105650.0,105640.0,0.58206176]
[1750030308657,0.42905822,105650.0,105640.0,0.58206176]
[1750030308902,0.43794578,105650.0,105640.0,0.58206176]
[1750030309423,0.43794578,105650.0,105640.0,0.42694176]
[1750030309596,0.4379459,105650.0,105640.0,0.58206176]
[1750030309808,0.43794582,105650.0,105640.0,0.58206176]
[1750030310017,0.42905822,105650.0,105640.0,0.58206176]
[1750030310226,0.43794584,105650.0,105640.0,0.58206176]
[1750030310643,0.0328521,105650.0,105640.0,0.57647399]
[1750030310856,0.04173961,105650.0,105640.0,0.57647399]
[1750030311073,0.0328521,105650.0,105640.0,0.57647408]
[1750030311305,0.04173927,105650.0,105640.0,0.5009815]
[1750030311533,0.0298521,105650.0,105640.0,0.49151584]
[1750030311760,0.03373919,105650.0,105640.0,0.53179593]
[1750030311993,0.0268521,105650.0,105640.0,0.32693]
[1750030312202,0.03873918,105650.0,105640.0,0.53179593]
[1750030312417,0.0298521,105650.0,105640.0,0.63229234]
[1750030312642,0.0298521,105650.0,105640.0,0.43689234]
[1750030312877,0.0298521,105650.0,105640.0,0.63229234]
[1750030313092,0.0298521,105650.0,105640.0,0.93109234]
[1750030313993,0.0268521,105650.0,105640.0,0.93109234]
[1750030314215,0.0248521,105650.0,105640.0,0.93109234]
[1750030314429,0.0258521,105650.0,105640.0,0.93109243]
[1750030314696,0.0258521,105650.0,105640.0,0.92162686]
[1750030314887,0.0258521,105650.0,105640.0,0.93109252]
[1750030315241,0.0258521,105650.0,105640.0,0.940558]
[1750030315649,0.0258521,105650.0,105640.0,0.96883666]
[1750030316063,0.00147186,105650.0,105640.0,0.96883666]
[1750030316302,0.00147186,105650.0,105640.0,1.41733145]
[1750030317615,0.00047186,105650.0,105640.0,1.41833145]
[1750030317845,0.00047186,105650.0,105640.0,1.41933145]
[1750030318511,0.00047186,105650.0,105640.0,1.22393145]
[1750030318725,0.00047186,105650.0,105640.0,1.41933145]
[1750030323553,0.00047186,105650.0,105640.0,1.39105279]
[1750030324889,0.40620612,105680.0,105670.0,0.0323]
[1750030324890,0.01,105680.0,105670.0,0.0323]
[1750030325098,0.01,105680.0,105670.0,0.2817658]
[1750030325099,0.01004717,105680.0,105670.0,0.2817658]
[1750030325332,0.01004717,105680.0,105670.0,0.3220858]
[1750030325552,0.01004717,105680.0,105670.0,0.3384858]
[1750030326019,0.40625329,105680.0,105670.0,0.3384858]
[1750030326268,0.43034586,105680.0,105670.0,0.3384858]
[1750030326489,0.44416096,105680.0,105670.0,0.3384858]
[1750030326716,0.43534586,105680.0,105670.0,0.30750176]
[1750030326935,0.44416096,105680.0,105670.0,0.30750176]
[1750030327188,0.44416114,105680.0,105670.0,0.30750176]
[1750030327431,0.44416114,105680.0,105670.0,0.09624176]
[1750030327659,0.84336737,105680.0,105670.0,0.25128176]
[1750030327926,1.27951659,105680.0,105670.0,0.25128176]
[1750030328161,6.11432002,105680.0,105670.0,0.25128176]
[1750030328398,6.11432012,105680.0,105670.0,0.25128176]
[1750030328618,6.11432025,105680.0,105670.0,0.25128176]
[1750030328749,6.1121686,105680.0,105670.0,0.25128176]
[1750030328963,6.11216862,105680.0,105670.0,0.25128176]
[1750030329164,6.11439009,105680.0,105670.0,0.25128176]
[1750030329610,6.02490529,105680.0,105670.0,0.25128176]
[1750030329827,5.62869917,105680.0,105670.0,0.25128176]
[1750030330083,5.62869907,105680.0,105670.0,0.25128176]
[1750030330516,5.61314886,105680.0,105670.0,0.25128176]
[1750030330732,5.62869895,105680.0,105670.0,0.25128176]
[1750030330970,5.7159625,105680.0,105670.0,0.25128176]
[1750030331188,5.62869917,105680.0,105670.0,0.25128176]
[1750030331808,5.22582861,105680.0,105670.0,0.25128176]
[1750030332021,5.62869912,105680.0,105670.0,0.25128176]
[1750030332240,5.61981326,105680.0,105670.0,0.25128176]
[1750030332662,5.62869912,105680.0,105670.0,0.25128176]
[1750030333074,5.62203472,105680.0,105670.0,0.25128176]
[1750030333274,5.62869912,105680.0,105670.0,0.25128176]
[1750030333688,5.62203472,105680.0,105670.0,0.25128176]
[1750030333894,5.62869912,105680.0,105670.0,0.25128176]
[1750030334101,5.62203472,105680.0,105670.0,0.26708176]
[1750030334323,5.62203472,105680.0,105670.0,0.28288176]
[1750030334537,0.78723148,105680.0,105670.0,0.28288176]
[1750030334768,0.78723137,105680.0,105670.0,0.28288176]
[1750030334980,0.77834586,105680.0,105670.0,0.28288176]
[1750030335614,0.78723144,105680.0,105670.0,0.28288176]
[1750030336033,0.4050917,105680.0,105670.0,0.28288176]
[1750030336273,0.40509162,105680.0,105670.0,0.34508194]
[1750030336480,0.40509157,105680.0,105670.0,0.34508194]
[1750030336683,0.39620612,105680.0,105670.0,0.34508194]
[1750030336992,0.40509168,105680.0,105670.0,0.28288176]
[1750030337198,0.39620612,105680.0,105670.0,0.28288176]
[1750030337667,0.40509168,105680.0,105670.0,0.28288176]
[1750030338096,0.40509162,105680.0,105670.0,0.28288176]
[1750030338533,0.39620612,105680.0,105670.0,0.28288176]
[1750030338752,0.40509167,105680.0,105670.0,0.28288176]
[1750030339172,0.40509168,105680.0,105670.0,0.12784176]
[1750030339384,0.40509168,105680.0,105670.0,0.28284176]
[1750030339596,0.40509168,105680.0,105670.0,0.26704176]
[1750030339597,0.46378757,105680.0,105670.0,0.26704176]
[1750030339814,0.47933762,105680.0,105670.0,0.26704176]
[1750030340038,0.43318695,105680.0,105670.0,0.26704176]
[1750030340263,0.42652262,105680.0,105670.0,0.28314176]
[1750030340481,0.42652236,105680.0,105670.0,0.28314176]
[1750030340698,0.41763687,105680.0,105670.0,0.28314176]
[1750030340938,0.42652251,105680.0,105670.0,0.28314176]
[1750030341162,0.42652247,105680.0,105670.0,0.28314176]
[1750030341827,0.47481623,105680.0,105670.0,0.28314176]
[1750030342049,0.08527444,105680.0,105670.0,0.28314176]
[1750030342266,0.76652255,105680.0,105670.0,0.28314176]
[1750030342504,0.76652249,105680.0,105670.0,0.28314176]
[1750030342927,0.75763687,105680.0,105670.0,0.28314176]
[1750030343398,0.76504249,105680.0,105670.0,0.28314176]
[1750030344271,0.75615687,105680.0,105670.0,0.28314176]
[1750030344475,0.76504249,105680.0,105670.0,0.12814176]
[1750030344688,0.84629971,105680.0,105670.0,0.28314176]
[1750030344910,0.83741409,105680.0,105670.0,0.28314176]
[1750030345392,0.75615687,105680.0,105670.0,0.28314176]
[1750030345614,0.76504249,105680.0,105670.0,0.28314176]
[1750030345884,0.75615687,105680.0,105670.0,0.28314176]
[1750030346139,1.16124861,105680.0,105670.0,0.09624176]
[1750030346349,1.25517653,105680.0,105670.0,0.25124176]
[1750030346568,5.69377341,105680.0,105670.0,0.25124176]
[1750030347009,5.69377348,105680.0,105670.0,0.25124176]
[1750030347224,5.70265936,105680.0,105670.0,0.25124176]
[1750030347696,5.60651005,105680.0,105670.0,0.155]
[1750030347913,5.59762425,105680.0,105670.0,0.1709]
[1750030348126,5.60651008,105680.0,105670.0,0.1861]
[1750030348342,5.5998457,105680.0,105670.0,0.1861]
[1750030348561,5.59762424,105680.0,105670.0,0.1861]
[1750030348777,5.59984571,105680.0,105670.0,0.1861]
[1750030349205,5.59762427,105680.0,105670.0,0.1861]
[1750030349639,5.60651013,105680.0,105670.0,0.1861]
[1750030350121,5.59762427,105680.0,105670.0,0.1861]
[1750030350590,5.59984573,105680.0,105670.0,0.1861]
[1750030350829,5.60651013,105680.0,105670.0,0.1861]
[1750030351037,5.59984573,105680.0,105670.0,0.1861]
[1750030351464,5.59762427,105680.0,105670.0,0.1861]
[1750030351651,5.59762426,105680.0,105670.0,0.1861]
[1750030352115,5.60651012,105680.0,105670.0,0.1861]
[1750030352319,5.59095987,105680.0,105670.0,0.1861]
[1750030352536,5.68710909,105680.0,105670.0,0.1861]
[1750030352995,5.69377348,105680.0,105670.0,0.1861]
[1750030353210,5.59984573,105680.0,105670.0,0.0311]
[1750030353425,5.60651013,105680.0,105670.0,0.0311]
[1750030354110,5.59984573,105680.0,105670.0,0.0311]
[1750030354323,5.59095987,105680.0,105670.0,0.0311]
[1750030354540,5.59762427,105680.0,105670.0,0.0311]
[1750030354762,5.60651013,105680.0,105670.0,0.0311]
[1750030354984,4.834803,105670.0,105660.0,0.1873]
[1750030355207,5.23100912,105670.0,105660.0,0.28354176]
[1750030355462,0.40509202,105670.0,105660.0,0.28354176]
[1750030355684,0.39620612,105670.0,105660.0,0.28354176]
[1750030355901,0.40509202,105670.0,105660.0,0.28354176]
[1750030356116,0.40509201,105670.0,105660.0,0.28354176]
[1750030356536,0.39620612,105670.0,105660.0,0.28354176]
[1750030356775,0.39720612,105670.0,105660.0,0.28354176]
[1750030357241,0.40709202,105670.0,105660.0,0.28354176]
[1750030357461,0.40709201,105670.0,105660.0,0.28354176]
[1750030357673,0.39820612,105670.0,105660.0,0.28354176]
[1750030357893,0.40709189,105670.0,105660.0,0.28354176]
[1750030358116,0.40709186,105670.0,105660.0,0.28354176]
[1750030358332,0.40709184,105670.0,105660.0,0.28354176]
[1750030358551,0.40709191,105670.0,105660.0,0.28354176]
[1750030358770,0.39820612,105670.0,105660.0,0.28354176]
[1750030358991,0.40709199,105670.0,105660.0,0.28354176]
[1750030359208,0.4847258,105670.0,105660.0,0.28354176]
[1750030359850,0.4758399,105670.0,105660.0,0.28354176]
[1750030360072,0.4847258,105670.0,105660.0,0.28354176]
[1750030360523,0.4758399,105670.0,105660.0,0.28354176]
[1750030360743,0.4847258,105670.0,105660.0,0.28354176]
[1750030360947,0.4758399,105670.0,105660.0,0.12854176]
[1750030361161,0.48472585,105670.0,105660.0,0.28350176]
[1750030361597,0.4758399,105670.0,105660.0,0.58230176]
[1750030361823,0.48472586,105670.0,105660.0,0.58230176]
[1750030362043,0.48472586,105670.0,105660.0,0.3311]
[1750030362267,0.48472602,105670.0,105660.0,0.48606]
[1750030362492,0.40709224,105670.0,105660.0,0.48606]
[1750030362712,0.40709241,105670.0,105660.0,0.48606]
[1750030363196,0.39820612,105670.0,105660.0,0.48606]
[1750030363410,0.40709241,105670.0,105660.0,0.48606]
[1750030363629,0.39820612,105670.0,105660.0,0.48606]
[1750030363852,0.4070924,105670.0,105660.0,0.48606]
[1750030364072,0.40709239,105670.0,105660.0,0.48606]
[1750030364310,0.39820612,105670.0,105660.0,0.48606]
[1750030364529,0.4070923,105670.0,105660.0,0.48606]
[1750030364982,0.39820612,105670.0,105660.0,0.48606]
[1750030365433,0.40709235,105670.0,105660.0,0.48606]
[1750030365719,0.83435534,105670.0,105660.0,0.3311]
[1750030365931,5.68471004,105670.0,105660.0,0.45376]
[1750030366155,5.68471046,105670.0,105660.0,0.45376]
[1750030366386,5.28850445,105670.0,105660.0,0.45376]
[1750030366609,5.58856135,105670.0,105660.0,0.3305]
[1750030366832,5.58856134,105670.0,105660.0,0.3305]
[1750030367065,5.58189607,105670.0,105660.0,0.3305]
[1750030367281,5.57300912,105670.0,105660.0,0.3305]
[1750030367497,5.58189601,105670.0,105660.0,0.0317]
[1750030367712,5.58856117,105670.0,105660.0,0.0317]
[1750030367936,5.581896,105670.0,105660.0,0.0317]
[1750030368152,5.58856116,105670.0,105660.0,0.0317]
[1750030368377,5.581896,105670.0,105660.0,0.0317]
[1750030368857,5.6758235,105670.0,105660.0,0.0317]
[1750030369109,5.68471045,105670.0,105660.0,0.0317]
[1750030369340,5.68471044,105670.0,105660.0,0.0317]
[1750030369548,5.68471045,105670.0,105660.0,0.0317]
[1750030369766,5.67804528,105670.0,105660.0,0.0317]
[1750030369983,5.66915834,105670.0,105660.0,0.0317]
[1750030370206,5.6780453,105670.0,105660.0,0.0317]
[1750030370426,4.834803,105660.0,105650.0,0.40618936]
[1750030370648,0.39620612,105660.0,105650.0,0.50243112]
[1750030370876,0.00888697,105660.0,105650.0,0.50243112]
[1750030371085,0.39620612,105660.0,105650.0,0.50243112]
[1750030371306,0.23561402,105660.0,105650.0,0.57219823]
[1750030371533,0.00888686,105660.0,105650.0,0.57219823]
[1750030371781,0.74387126,105670.0,105660.0,0.0318]
[1750030371995,5.57200912,105670.0,105660.0,0.0318]
[1750030372215,5.57867424,105670.0,105660.0,0.0318]
[1750030372428,5.587561,105670.0,105660.0,0.0318]
[1750030372619,5.57200912,105670.0,105660.0,0.0318]
[1750030372909,5.5808959,105670.0,105660.0,0.0118]
[1750030373134,5.57300912,105670.0,105660.0,0.0118]
[1750030373353,5.57967421,105670.0,105660.0,0.0118]
[1750030373639,5.58089584,105670.0,105660.0,0.0118]
[1750030373844,0.7470928,105670.0,105660.0,0.0118]
[1750030374060,0.74709273,105670.0,105660.0,0.0118]
[1750030374825,0.73820612,105670.0,105660.0,0.0118]
[1750030375036,0.74709272,105670.0,105660.0,0.0118]
[1750030375242,0.74709271,105670.0,105660.0,0.0118]
[1750030375448,0.73820612,105670.0,105660.0,0.0118]
[1750030375666,0.74709271,105670.0,105660.0,0.0118]
[1750030375906,0.74709271,105670.0,105660.0,0.028]
[1750030376350,0.73820612,105670.0,105660.0,0.028]
[1750030376568,0.74709262,105670.0,105660.0,0.028]
[1750030377015,0.74709261,105670.0,105660.0,0.028]
[1750030377222,0.73820612,105670.0,105660.0,0.028]
[1750030377435,0.74709261,105670.0,105660.0,0.028]
[1750030377655,0.74709262,105670.0,105660.0,0.028]
[1750030377869,0.73820612,105670.0,105660.0,0.028]
[1750030378099,0.74709261,105670.0,105660.0,0.028]
[1750030378547,0.73820612,105670.0,105660.0,0.028]
[1750030378754,0.74709262,105670.0,105660.0,0.028]
[1750030379182,0.73820612,105670.0,105660.0,0.028]
[1750030379408,0.74709263,105670.0,105660.0,0.028]
[1750030379849,0.74707927,105670.0,105660.0,0.028]
[1750030380488,0.73820612,105670.0,105660.0,0.028]
[1750030381177,0.8432284,105670.0,105660.0,0.028]
[1750030381390,0.83435534,105670.0,105660.0,0.028]
[1750030382041,0.84322839,105670.0,105660.0,0.028]
[1750030382331,0.83435534,105670.0,105660.0,0.028]
[1750030382770,0.84322843,105670.0,105660.0,0.028]
[1750030383200,0.84322837,105670.0,105660.0,0.028]
[1750030383419,0.84322838,105670.0,105660.0,0.028]
[1750030383849,0.83435534,105670.0,105660.0,0.028]
[1750030384282,0.84322836,105670.0,105660.0,0.028]
[1750030385376,0.84322839,105670.0,105660.0,0.028]
[1750030385590,0.83435534,105670.0,105660.0,0.028]
[1750030385825,0.84322843,105670.0,105660.0,0.028]
[1750030386323,5.174803,105660.0,105650.0,0.0323]
[1750030386557,4.834803,105650.0,105640.0,0.0323]
[1750030386781,5.57100912,105650.0,105640.0,0.0323]
[1750030387011,5.62807698,105650.0,105640.0,0.0158]
[1750030387235,5.62807702,105650.0,105640.0,0.0323]
[1750030387448,5.62807697,105650.0,105640.0,0.0323]
[1750030387667,5.61920203,105650.0,105640.0,0.0323]
[1750030387893,5.62807698,105650.0,105640.0,0.0323]
[1750030388124,5.61920203,105650.0,105640.0,0.0323]
[1750030388360,5.62807698,105650.0,105640.0,0.0323]
[1750030389050,5.59573557,105650.0,105640.0,0.0323]
[1750030389275,5.60461052,105650.0,105640.0,0.0323]
[1750030389491,5.59573557,105650.0,105640.0,0.0333]
[1750030390021,5.59573557,105650.0,105640.0,0.0343]
[1750030390244,5.61129064,105650.0,105640.0,0.002]
[1750030390463,5.38971693,105650.0,105640.0,0.002]
[1750030390684,5.38082857,105650.0,105640.0,0.002]
[1750030390915,5.54463183,105650.0,105640.0,0.002]
[1750030391149,5.54513202,105650.0,105640.0,0.001]
[1750030391368,5.50968606,105650.0,105640.0,0.001]
[1750030391587,0.34,105640.0,105630.0,0.10708936]
[1750030391815,0.73498661,105640.0,105630.0,0.10708936]
[1750030392921,0.73498661,105640.0,105630.0,0.09186122]
[1750030393131,0.73498661,105640.0,105630.0,0.09386122]
[1750030393567,0.82398127,105640.0,105630.0,0.09386122]
[1750030394017,0.82398127,105640.0,105630.0,0.01827186]
[1750030395613,0.83282522,105640.0,105630.0,0.01827186]
[1750030396064,0.83282523,105640.0,105630.0,0.01827186]
[1750030396298,5.84770794,105640.0,105630.0,0.00247186]
[1750030396566,5.83870794,105640.0,105630.0,0.00247186]
[1750030396781,5.83870797,105640.0,105630.0,0.00247186]
[1750030397722,5.44372136,105640.0,105630.0,0.01657186]
[1750030397947,5.43587727,105640.0,105630.0,0.01557186]
[1750030398182,5.3557267,105640.0,105630.0,0.03217186]
[1750030398426,5.35572655,105640.0,105630.0,0.03217186]
[1750030398689,5.34688261,105640.0,105630.0,0.03217186]
[1750030398955,5.35572641,105640.0,105630.0,0.03217186]
[1750030399706,5.44403183,105640.0,105630.0,0.03217186]
[1750030399934,5.45287563,105640.0,105630.0,0.03217186]
[1750030400172,5.45287565,105640.0,105630.0,0.03217186]
[1750030400405,5.44403183,105640.0,105630.0,0.03217186]
[1750030401079,5.45287565,105640.0,105630.0,0.03217186]
[1750030401308,5.44403183,105640.0,105630.0,0.03217186]
[1750030401593,5.45287565,105640.0,105630.0,0.03217186]
[1750030401815,5.35672643,105640.0,105630.0,0.03217186]
[1750030402484,5.34788261,105640.0,105630.0,0.03217186]
[1750030402711,5.35672643,105640.0,105630.0,0.03217186]
[1750030403424,5.34788261,105640.0,105630.0,0.03217186]
[1750030403663,5.35672643,105640.0,105630.0,0.03217186]
[1750030403922,5.34788261,105640.0,105630.0,0.03217186]
[1750030404182,5.35672643,105640.0,105630.0,0.03217186]
[1750030404409,5.34788261,105640.0,105630.0,0.03217186]
[1750030404636,5.35672643,105640.0,105630.0,0.03217186]
[1750030405316,5.34788261,105640.0,105630.0,0.03217186]
[1750030405548,5.35672643,105640.0,105630.0,0.03217186]
[1750030405766,5.34788261,105640.0,105630.0,0.03217186]
[1750030406443,5.35672643,105640.0,105630.0,0.03217186]
[1750030406667,5.34788261,105640.0,105630.0,0.03217186]
[1750030407085,5.45287565,105640.0,105630.0,0.03217186]
[1750030407310,5.44403183,105640.0,105630.0,0.03217186]
[1750030407538,5.34788261,105640.0,105630.0,0.03217186]
[1750030407773,5.35672643,105640.0,105630.0,0.03217186]
[1750030409534,5.35330963,105640.0,105630.0,0.03217186]
[1750030409745,5.36219911,105640.0,105630.0,0.03217186]